[Event "*** Titled Tuesday Blitz"]
[Site "Chess.com"]
[Date "2020.04.21"]
[Round "1"]
[White "Hikaru"]
[Black "AnkitGajwa"]
[Result "1-0"]
[WhiteElo "3233"]
[BlackElo "2477"]
[TimeControl "180+1"]
[EndTime "10:00:51 PDT"]
[Termination "Hikaru won by resignation"]

1. Nf3 {[%clk 0:03:00.9]} 1... Nf6 {[%clk 0:02:59.9]} 2. b3 {[%clk 0:02:59.3]}
2... g6 {[%clk 0:02:59.9]} 3. Bb2 {[%clk 0:02:59.8]} 3... Bg7 {[%clk 0:02:59.8]}
4. d4 {[%clk 0:03:00.7]} 4... O-O {[%clk 0:02:59.6]} 5. e3 {[%clk 0:03:00.6]}
5... d6 {[%clk 0:02:58.1]} 6. Be2 {[%clk 0:03:00.3]} 6... b6 {[%clk 0:02:57.4]}
7. O-O {[%clk 0:02:59.6]} 7... Bb7 {[%clk 0:02:57.7]} 8. c4 {[%clk 0:03:00.2]}
8... Nbd7 {[%clk 0:02:58]} 9. Qc2 {[%clk 0:02:59.7]} 9... Ne4 {[%clk 0:02:51.3]}
10. Rd1 {[%clk 0:02:58.9]} 10... c6 {[%clk 0:02:44.5]} 1-0

[Event "*** Titled Tuesday Blitz"]
[Site "Chess.com"]
[Date "2020.04.21"]
[Round "1"]
[White "Rodalquilar"]
[Black "aa175"]
[Result "1-0"]
[WhiteElo "2613"]
[BlackElo "2281"]
[TimeControl "180+1"]
[EndTime "10:01:54 PDT"]
[Termination "Rodalquilar won by resignation"]

1. d4 {[%clk 0:02:32.5]} 1... Nf6 {[%clk 0:02:55.2]} 2. c4 {[%clk 0:02:31.3]}
2... g6 {[%clk 0:02:53.2]} 3. Nc3 {[%clk 0:02:31.7]} 3... d5 {[%clk 0:02:49.3]}
4. cxd5 {[%clk 0:02:32.6]} 4... Nxd5 {[%clk 0:02:49.7]} 5. Bd2 {[%clk
0:02:32.8]} 5... Bg7 {[%clk 0:02:47.7]} 6. e4 {[%clk 0:02:33]} 6... Nb6 {[%clk
0:02:47.7]} 7. Be3 {[%clk 0:02:33]} 7... O-O {[%clk 0:02:45.7]} 8. f4 {[%clk
0:02:33.2]} 8... Nc6 {[%clk 0:02:37.1]} 9. d5 {[%clk 0:02:31.5]} 9... Na5 {[%clk
0:02:37]} 10. Bd4 {[%clk 0:02:31.2]} 10... c6 {[%clk 0:02:20.7]} 11. Bxg7 {[%clk
0:02:29.8]} 11... Kxg7 {[%clk 0:02:19.8]} 12. b4 {[%clk 0:02:26.4]} 1-0

[Event "*** Titled Tuesday Blitz"]
[Site "Chess.com"]
[Date "2020.04.21"]
[Round "1"]
[White "GusKan67"]
[Black "raviteja81293"]
[Result "0-1"]
[WhiteElo "2407"]
[BlackElo "2782"]
[TimeControl "180+1"]
[EndTime "10:02:18 PDT"]
[Termination "raviteja81293 won by resignation"]

1. d4 {[%clk 0:03:00.1]} 1... d5 {[%clk 0:02:59.1]} 2. Nf3 {[%clk 0:02:59.1]}
2... Nf6 {[%clk 0:02:57.7]} 3. c4 {[%clk 0:02:59.1]} 3... c6 {[%clk 0:02:58]} 4.
e3 {[%clk 0:02:58.6]} 4... Bg4 {[%clk 0:02:57.9]} 5. Nc3 {[%clk 0:02:56.2]} 5...
e6 {[%clk 0:02:57.6]} 6. h3 {[%clk 0:02:56.5]} 6... Bh5 {[%clk 0:02:57.2]} 7.
Qb3 {[%clk 0:02:52.7]} 7... Qb6 {[%clk 0:02:56.6]} 8. c5 {[%clk 0:02:52.5]} 8...
Qc7 {[%clk 0:02:56.6]} 9. g4 {[%clk 0:02:52.6]} 9... Bg6 {[%clk 0:02:56.2]} 10.
Ne5 {[%clk 0:02:53.2]} 10... Nbd7 {[%clk 0:02:55.9]} 11. f4 {[%clk 0:02:52.8]}
11... Nxe5 {[%clk 0:02:55.8]} 12. fxe5 {[%clk 0:02:52.6]} 12... Ne4 {[%clk
0:02:56.7]} 13. Bg2 {[%clk 0:02:38.4]} 13... Nxc3 {[%clk 0:02:51]} 14. Qxc3
{[%clk 0:02:18.6]} 14... f6 {[%clk 0:02:49.3]} 15. exf6 {[%clk 0:02:06.1]} 15...
Qg3+ {[%clk 0:02:47.8]} 16. Kf1 {[%clk 0:02:06.7]} 16... gxf6 {[%clk 0:02:47.2]}
17. Qe1 {[%clk 0:01:56]} 17... Bd3+ {[%clk 0:02:46]} 0-1

[Event "*** Titled Tuesday Blitz"]
[Site "Chess.com"]
[Date "2020.04.21"]
[Round "1"]
[White "english_player_89"]
[Black "Azatnew"]
[Result "0-1"]
[WhiteElo "2413"]
[BlackElo "2789"]
[TimeControl "180+1"]
[EndTime "10:02:29 PDT"]
[Termination "Azatnew won by resignation"]

1. Nf3 {[%clk 0:03:00.9]} 1... Nf6 {[%clk 0:02:57.5]} 2. g3 {[%clk 0:02:58]}
2... g6 {[%clk 0:02:58]} 3. Bg2 {[%clk 0:02:58.2]} 3... Bg7 {[%clk 0:02:58.4]}
4. O-O {[%clk 0:02:58.2]} 4... O-O {[%clk 0:02:59.3]} 5. d4 {[%clk 0:02:58.5]}
5... d5 {[%clk 0:02:59.7]} 6. b3 {[%clk 0:02:58.9]} 6... a5 {[%clk 0:02:59.8]}
7. Bb2 {[%clk 0:02:58.6]} 7... a4 {[%clk 0:02:59.9]} 8. bxa4 {[%clk 0:02:57.1]}
8... Rxa4 {[%clk 0:02:57.7]} 9. Nbd2 {[%clk 0:02:57.7]} 9... Nc6 {[%clk
0:02:55]} 10. c4 {[%clk 0:02:57.5]} 10... Ra8 {[%clk 0:02:55.5]} 11. cxd5 {[%clk
0:02:51.1]} 11... Nxd5 {[%clk 0:02:56.4]} 12. a3 {[%clk 0:02:48]} 12... Nb6
{[%clk 0:02:55.2]} 13. e3 {[%clk 0:02:41.3]} 13... Na4 {[%clk 0:02:51]} 14. Bc1
{[%clk 0:02:31.5]} 14... e5 {[%clk 0:02:50.8]} 15. Nb3 {[%clk 0:02:30.8]} 15...
Be6 {[%clk 0:02:46.1]} 16. dxe5 {[%clk 0:02:20.8]} 16... Qxd1 {[%clk 0:02:43.3]}
17. Rxd1 {[%clk 0:02:16.3]} 17... Bxb3 {[%clk 0:02:42.2]} 18. Rd7 {[%clk
0:02:14.7]} 18... Rfd8 {[%clk 0:02:39.8]} 19. Rxd8+ {[%clk 0:02:11.4]} 19...
Rxd8 {[%clk 0:02:40.7]} 20. Rb1 {[%clk 0:02:11.4]} 20... Rd1+ {[%clk 0:02:40.6]}
21. Bf1 {[%clk 0:02:10.2]} 21... Bc4 {[%clk 0:02:40.8]} 22. Nd2 {[%clk
0:02:09.7]} 22... Bxf1 {[%clk 0:02:40.6]} 23. Nxf1 {[%clk 0:02:10.6]} 23... Bxe5
{[%clk 0:02:39.3]} 24. f4 {[%clk 0:02:06.4]} 24... Bd6 {[%clk 0:02:39]} 25. Kf2
{[%clk 0:02:06]} 25... Bxa3 {[%clk 0:02:38.7]} 0-1

[Event "*** Titled Tuesday Blitz"]
[Site "Chess.com"]
[Date "2020.04.21"]
[Round "1"]
[White "DraskovicL"]
[Black "Zmeeed63"]
[Result "1-0"]
[WhiteElo "2541"]
[BlackElo "2148"]
[TimeControl "180+1"]
[EndTime "10:02:47 PDT"]
[Termination "DraskovicL won by resignation"]

1. Nf3 {[%clk 0:02:55.3]} 1... Nf6 {[%clk 0:03:00.2]} 2. g3 {[%clk 0:02:54.5]}
2... e6 {[%clk 0:03:00.9]} 3. Bg2 {[%clk 0:02:54.9]} 3... d5 {[%clk 0:03:01.4]}
4. O-O {[%clk 0:02:55.5]} 4... Be7 {[%clk 0:03:01.8]} 5. d3 {[%clk 0:02:55.9]}
5... O-O {[%clk 0:03:02.4]} 6. b3 {[%clk 0:02:55.6]} 6... c5 {[%clk 0:03:03]} 7.
Bb2 {[%clk 0:02:55.6]} 7... Nc6 {[%clk 0:03:03.5]} 8. Nbd2 {[%clk 0:02:55.2]}
8... b6 {[%clk 0:03:02.7]} 9. e4 {[%clk 0:02:55.1]} 9... Bb7 {[%clk 0:03:03.2]}
10. Qe2 {[%clk 0:02:54.7]} 10... Rc8 {[%clk 0:03:01.8]} 11. a3 {[%clk
0:02:54.3]} 11... d4 {[%clk 0:03:01.7]} 12. e5 {[%clk 0:02:52.4]} 12... Nd5
{[%clk 0:03:01.5]} 13. h4 {[%clk 0:02:47.4]} 13... h6 {[%clk 0:03:00.1]} 14. h5
{[%clk 0:02:42.4]} 14... b5 {[%clk 0:03:00]} 15. Rfe1 {[%clk 0:02:38]} 15... Qb6
{[%clk 0:03:00.3]} 16. Ne4 {[%clk 0:02:36.9]} 16... Rfd8 {[%clk 0:02:57.9]} 17.
Qd2 {[%clk 0:02:32.1]} 17... Bf8 {[%clk 0:02:57.9]} 18. g4 {[%clk 0:02:31.9]}
18... c4 {[%clk 0:02:57.7]} 19. Qe2 {[%clk 0:02:13.1]} 19... c3 {[%clk 0:02:57]}
20. Bc1 {[%clk 0:02:12.9]} 20... b4 {[%clk 0:02:56.7]} 21. a4 {[%clk 0:02:10.6]}
21... Nce7 {[%clk 0:02:51.8]} 22. Nh4 {[%clk 0:02:04.9]} 22... Kh8 {[%clk
0:02:49.2]} 23. g5 {[%clk 0:02:03.8]} 23... hxg5 {[%clk 0:02:48.7]} 24. Nxg5
{[%clk 0:01:57]} 24... Ng8 {[%clk 0:02:46.8]} 25. Nxf7+ {[%clk 0:01:54.4]} 25...
Kh7 {[%clk 0:02:41.5]} 26. Qe4+ {[%clk 0:01:46.9]} 1-0

[Event "*** Titled Tuesday Blitz"]
[Site "Chess.com"]
[Date "2020.04.21"]
[Round "1"]
[White "WIDBIFS"]
[Black "SanchezKelvin"]
[Result "1-0"]
[WhiteElo "2780"]
[BlackElo "2406"]
[TimeControl "180+1"]
[EndTime "10:02:51 PDT"]
[Termination "WIDBIFS won by resignation"]

1. Nf3 {[%clk 0:03:00.9]} 1... d5 {[%clk 0:02:28.3]} 2. d4 {[%clk 0:03:00.8]}
2... Nf6 {[%clk 0:02:19.2]} 3. Bf4 {[%clk 0:03:01.1]} 3... c5 {[%clk 0:02:15.4]}
4. e3 {[%clk 0:03:01.5]} 4... Nc6 {[%clk 0:02:09.6]} 5. Nbd2 {[%clk 0:03:00.2]}
5... Qb6 {[%clk 0:02:07]} 6. dxc5 {[%clk 0:02:59.1]} 6... Qxb2 {[%clk
0:01:59.5]} 7. Rb1 {[%clk 0:02:45.2]} 7... Qc3 {[%clk 0:01:59]} 8. Bb5 {[%clk
0:02:45.7]} 8... Qxc5 {[%clk 0:01:56.8]} 9. O-O {[%clk 0:02:46.2]} 9... a6
{[%clk 0:01:56]} 10. Bxc6+ {[%clk 0:02:42.5]} 10... Qxc6 {[%clk 0:01:55.4]} 11.
c4 {[%clk 0:02:40.2]} 11... e6 {[%clk 0:01:53.5]} 12. Ne5 {[%clk 0:02:35.6]}
12... Qc5 {[%clk 0:01:41.5]} 13. Qa4+ {[%clk 0:02:29.9]} 13... Nd7 {[%clk
0:01:32]} 14. Rxb7 {[%clk 0:02:25.1]} 1-0

[Event "*** Titled Tuesday Blitz"]
[Site "Chess.com"]
[Date "2020.04.21"]
[Round "1"]
[White "swayamsm"]
[Black "BvsN"]
[Result "1-0"]
[WhiteElo "2700"]
[BlackElo "2361"]
[TimeControl "180+1"]
[EndTime "10:02:52 PDT"]
[Termination "swayamsm won by resignation"]

1. d4 {[%clk 0:03:00.9]} 1... d5 {[%clk 0:02:57.5]} 2. Nf3 {[%clk 0:03:01.8]}
2... Nf6 {[%clk 0:02:57.1]} 3. Bf4 {[%clk 0:03:02.1]} 3... c5 {[%clk 0:02:54.9]}
4. e3 {[%clk 0:03:02.3]} 4... Nc6 {[%clk 0:02:54.8]} 5. Nbd2 {[%clk 0:03:00.8]}
5... Bg4 {[%clk 0:02:51.5]} 6. c3 {[%clk 0:02:59.5]} 6... e6 {[%clk 0:02:50.3]}
7. Qb3 {[%clk 0:02:56.5]} 7... Qc8 {[%clk 0:02:47.6]} 8. Ne5 {[%clk 0:02:55.7]}
8... c4 {[%clk 0:02:44.8]} 9. Qa4 {[%clk 0:02:53.1]} 9... Bf5 {[%clk 0:02:39.7]}
10. b3 {[%clk 0:02:52.1]} 10... cxb3 {[%clk 0:02:37]} 11. axb3 {[%clk 0:02:53]}
11... Nd7 {[%clk 0:02:36.4]} 12. Nxc6 {[%clk 0:02:49.4]} 12... bxc6 {[%clk
0:02:35.3]} 13. Ba6 {[%clk 0:02:49]} 13... Qd8 {[%clk 0:02:23.1]} 14. Qxc6
{[%clk 0:02:47]} 14... Be7 {[%clk 0:02:09.9]} 15. Bb7 {[%clk 0:02:45.8]} 15...
Rb8 {[%clk 0:02:00.9]} 16. Bxb8 {[%clk 0:02:37.6]} 16... Qxb8 {[%clk 0:02:00.1]}
17. Bc8 {[%clk 0:02:32.4]} 17... Qd6 {[%clk 0:01:54.1]} 18. Bxd7+ {[%clk
0:02:25.5]} 18... Qxd7 {[%clk 0:01:52.7]} 19. Qxd7+ {[%clk 0:02:25.5]} 19...
Kxd7 {[%clk 0:01:52.7]} 20. Rxa7+ {[%clk 0:02:25.8]} 20... Kd6 {[%clk 0:01:51]}
21. e4 {[%clk 0:02:20]} 1-0

[Event "*** Titled Tuesday Blitz"]
[Site "Chess.com"]
[Date "2020.04.21"]
[Round "1"]
[White "Salem-AR"]
[Black "Onwgs"]
[Result "1-0"]
[WhiteElo "2994"]
[BlackElo "2472"]
[TimeControl "180+1"]
[EndTime "10:02:53 PDT"]
[Termination "Salem-AR won by resignation"]

1. d4 {[%clk 0:03:00.9]} 1... Nf6 {[%clk 0:02:59.1]} 2. c4 {[%clk 0:03:01.4]}
2... g6 {[%clk 0:02:58.9]} 3. Nc3 {[%clk 0:03:01.1]} 3... d5 {[%clk 0:02:59.3]}
4. cxd5 {[%clk 0:03:00.9]} 4... Nxd5 {[%clk 0:02:59.6]} 5. e4 {[%clk 0:03:01.8]}
5... Nxc3 {[%clk 0:02:59.5]} 6. bxc3 {[%clk 0:03:02.7]} 6... Bg7 {[%clk
0:02:59.6]} 7. Bc4 {[%clk 0:03:03.3]} 7... c5 {[%clk 0:02:59.9]} 8. Ne2 {[%clk
0:03:03.3]} 8... Nc6 {[%clk 0:03:00.3]} 9. Be3 {[%clk 0:03:03.6]} 9... O-O
{[%clk 0:03:00.5]} 10. O-O {[%clk 0:03:03.2]} 10... Qc7 {[%clk 0:03:01.1]} 11.
Rc1 {[%clk 0:03:02.7]} 11... b6 {[%clk 0:03:01.3]} 12. h4 {[%clk 0:02:59.3]}
12... Rd8 {[%clk 0:03:00.1]} 13. Qe1 {[%clk 0:02:53.7]} 13... Bb7 {[%clk
0:02:57.5]} 14. h5 {[%clk 0:02:52.4]} 14... Na5 {[%clk 0:02:53.8]} 15. Bd3
{[%clk 0:02:50.9]} 15... Qd7 {[%clk 0:02:25.2]} 16. h6 {[%clk 0:02:31.1]} 16...
Bh8 {[%clk 0:02:14.6]} 17. f4 {[%clk 0:02:31.1]} 17... cxd4 {[%clk 0:02:01.1]}
18. cxd4 {[%clk 0:02:30.3]} 18... Nc6 {[%clk 0:02:01.4]} 19. d5 {[%clk
0:02:26.2]} 19... Nb4 {[%clk 0:01:59.6]} 20. Qxb4 {[%clk 0:02:25.5]} 1-0

[Event "*** Titled Tuesday Blitz"]
[Site "Chess.com"]
[Date "2020.04.21"]
[Round "1"]
[White "hornsounder"]
[Black "olomi007"]
[Result "0-1"]
[WhiteElo "2343"]
[BlackElo "2667"]
[TimeControl "180+1"]
[EndTime "10:02:55 PDT"]
[Termination "olomi007 won by resignation"]

1. c4 {[%clk 0:03:00.7]} 1... c5 {[%clk 0:02:59.4]} 2. g3 {[%clk 0:03:01]} 2...
Nc6 {[%clk 0:02:58.6]} 3. Bg2 {[%clk 0:03:01.9]} 3... g6 {[%clk 0:02:59.2]} 4.
Nc3 {[%clk 0:03:02.1]} 4... Bg7 {[%clk 0:02:59.7]} 5. Nf3 {[%clk 0:03:02.2]}
5... d6 {[%clk 0:02:59.9]} 6. O-O {[%clk 0:03:02]} 6... e6 {[%clk 0:02:58.8]} 7.
d3 {[%clk 0:03:00.9]} 7... Nge7 {[%clk 0:02:58.2]} 8. Bg5 {[%clk 0:03:00.7]}
8... h6 {[%clk 0:02:58.1]} 9. Bd2 {[%clk 0:02:58.6]} 9... O-O {[%clk 0:02:57]}
10. a3 {[%clk 0:02:58.2]} 10... Qd7 {[%clk 0:02:51.1]} 11. Rb1 {[%clk
0:02:57.5]} 11... b6 {[%clk 0:02:51.1]} 12. b4 {[%clk 0:02:56.7]} 12... Bb7
{[%clk 0:02:51.7]} 13. Qc2 {[%clk 0:02:41.3]} 13... f5 {[%clk 0:02:51.1]} 14. e3
{[%clk 0:02:28.6]} 14... g5 {[%clk 0:02:47.8]} 15. Na4 {[%clk 0:02:10.9]} 15...
Ng6 {[%clk 0:02:40.2]} 16. Bc3 {[%clk 0:02:09.6]} 16... e5 {[%clk 0:02:39.7]}
17. Qb2 {[%clk 0:02:00.4]} 17... Rab8 {[%clk 0:02:32.3]} 18. d4 {[%clk
0:01:51.3]} 18... cxd4 {[%clk 0:02:26.6]} 19. exd4 {[%clk 0:01:51.3]} 19... exd4
{[%clk 0:02:27]} 20. Nxd4 {[%clk 0:01:41.8]} 20... Nxd4 {[%clk 0:02:26.7]} 0-1

[Event "*** Titled Tuesday Blitz"]
[Site "Chess.com"]
[Date "2020.04.21"]
[Round "1"]
[White "VerdeNotte"]
[Black "TastyFrenchFries"]
[Result "1-0"]
[WhiteElo "2713"]
[BlackElo "2375"]
[TimeControl "180+1"]
[EndTime "10:03:15 PDT"]
[Termination "VerdeNotte won by checkmate"]

1. e4 {[%clk 0:03:00.9]} 1... e6 {[%clk 0:03:00.2]} 2. d4 {[%clk 0:03:00.2]}
2... d5 {[%clk 0:03:00.5]} 3. Nd2 {[%clk 0:03:00.6]} 3... Nf6 {[%clk 0:03:00.4]}
4. e5 {[%clk 0:03:00.7]} 4... Nfd7 {[%clk 0:03:01]} 5. Bd3 {[%clk 0:03:01.4]}
5... c5 {[%clk 0:03:01.4]} 6. c3 {[%clk 0:03:01.9]} 6... Nc6 {[%clk 0:03:01.9]}
7. Ngf3 {[%clk 0:03:02.3]} 7... Be7 {[%clk 0:03:01.5]} 8. O-O {[%clk 0:03:01.1]}
8... g5 {[%clk 0:03:02]} 9. dxc5 {[%clk 0:03:01]} 9... Ndxe5 {[%clk 0:02:58.4]}
10. Nxe5 {[%clk 0:02:55.3]} 10... Nxe5 {[%clk 0:02:59.3]} 11. Bb5+ {[%clk
0:02:54.5]} 11... Bd7 {[%clk 0:02:58.7]} 12. Bxd7+ {[%clk 0:02:52.5]} 12... Qxd7
{[%clk 0:02:59.6]} 13. b4 {[%clk 0:02:51.6]} 13... O-O-O {[%clk 0:02:56.8]} 14.
Nf3 {[%clk 0:02:47.2]} 14... Nxf3+ {[%clk 0:02:54.7]} 15. Qxf3 {[%clk
0:02:48.1]} 15... f5 {[%clk 0:02:53.6]} 16. Re1 {[%clk 0:02:46.4]} 16... Bf6
{[%clk 0:02:51.8]} 17. Rb1 {[%clk 0:02:33.6]} 17... g4 {[%clk 0:02:43.1]} 18.
Qd3 {[%clk 0:02:26.1]} 18... h5 {[%clk 0:02:33]} 19. Bf4 {[%clk 0:02:23.4]}
19... Qc6 {[%clk 0:02:23.6]} 20. b5 {[%clk 0:02:19.2]} 20... Qxc5 {[%clk
0:02:21.6]} 21. Rxe6 {[%clk 0:02:19]} 21... Bxc3 {[%clk 0:01:52.3]} 22. Qxf5
{[%clk 0:02:18.5]} 22... Rd7 {[%clk 0:01:46.1]} 23. Rc6+ {[%clk 0:02:12.8]}
23... bxc6 {[%clk 0:01:45.6]} 24. bxc6 {[%clk 0:02:13]} 24... Qxc6 {[%clk
0:01:38.6]} 25. Rb8# {[%clk 0:02:12.5]} 1-0

[Event "*** Titled Tuesday Blitz"]
[Site "Chess.com"]
[Date "2020.04.21"]
[Round "1"]
[White "swimmerchess"]
[Black "Diego_FloresQ"]
[Result "1-0"]
[WhiteElo "2824"]
[BlackElo "2433"]
[TimeControl "180+1"]
[EndTime "10:03:18 PDT"]
[Termination "swimmerchess won by resignation"]

1. e4 {[%clk 0:03:00.9]} 1... c5 {[%clk 0:02:52.5]} 2. Nf3 {[%clk 0:03:00.6]}
2... e6 {[%clk 0:02:51]} 3. d4 {[%clk 0:03:00.4]} 3... cxd4 {[%clk 0:02:51.9]}
4. Nxd4 {[%clk 0:03:01.3]} 4... Nf6 {[%clk 0:02:42.5]} 5. Nc3 {[%clk 0:03:01.1]}
5... d6 {[%clk 0:02:41.4]} 6. Be2 {[%clk 0:03:01.4]} 6... Be7 {[%clk 0:02:40.1]}
7. O-O {[%clk 0:03:02]} 7... O-O {[%clk 0:02:40.6]} 8. Be3 {[%clk 0:03:02.6]}
8... a6 {[%clk 0:02:40.9]} 9. a4 {[%clk 0:03:02.8]} 9... Qc7 {[%clk 0:02:41.2]}
10. f4 {[%clk 0:03:03.1]} 10... Nc6 {[%clk 0:02:37.5]} 11. Kh1 {[%clk
0:03:03.6]} 11... Re8 {[%clk 0:02:36.8]} 12. Bg1 {[%clk 0:03:03.8]} 12... Rb8
{[%clk 0:02:31.5]} 13. Qd3 {[%clk 0:03:01]} 13... Nxd4 {[%clk 0:02:26.1]} 14.
Bxd4 {[%clk 0:03:00.5]} 14... e5 {[%clk 0:02:24.1]} 15. fxe5 {[%clk 0:03:01.4]}
15... dxe5 {[%clk 0:02:22.6]} 16. Qg3 {[%clk 0:03:02]} 16... Nd7 {[%clk
0:02:10.7]} 17. Nd5 {[%clk 0:02:51]} 17... Qd6 {[%clk 0:02:07.6]} 18. Bc3 {[%clk
0:02:36.7]} 18... Bf8 {[%clk 0:02:02]} 19. Rad1 {[%clk 0:02:36]} 19... Qc6
{[%clk 0:01:39.4]} 20. Bh5 {[%clk 0:02:32.4]} 20... g6 {[%clk 0:01:39.3]} 21.
Bg4 {[%clk 0:02:32.2]} 21... b5 {[%clk 0:01:17.2]} 22. Bxd7 {[%clk 0:02:31]}
22... Bxd7 {[%clk 0:01:16.6]} 23. Nf6+ {[%clk 0:02:31.5]} 23... Kg7 {[%clk
0:01:17.5]} 24. Nxd7 {[%clk 0:02:31]} 1-0

[Event "*** Titled Tuesday Blitz"]
[Site "Chess.com"]
[Date "2020.04.21"]
[Round "1"]
[White "GMartin_Petrov"]
[Black "TheSodabread"]
[Result "1-0"]
[WhiteElo "2550"]
[BlackElo "1950"]
[TimeControl "180+1"]
[EndTime "10:03:22 PDT"]
[Termination "GMartin_Petrov won by resignation"]

1. e4 {[%clk 0:03:00.9]} 1... c5 {[%clk 0:02:57.4]} 2. Nf3 {[%clk 0:03:00.6]}
2... d6 {[%clk 0:02:56.2]} 3. d4 {[%clk 0:03:01]} 3... cxd4 {[%clk 0:02:34.4]}
4. Nxd4 {[%clk 0:03:00.7]} 4... Nf6 {[%clk 0:02:35]} 5. Nc3 {[%clk 0:03:01]}
5... a6 {[%clk 0:02:34.6]} 6. Be3 {[%clk 0:03:00.4]} 6... e5 {[%clk 0:02:34.2]}
7. Nb3 {[%clk 0:03:00.3]} 7... Be6 {[%clk 0:02:34]} 8. h3 {[%clk 0:02:59.8]}
8... Be7 {[%clk 0:02:32.5]} 9. f4 {[%clk 0:02:59.4]} 9... b5 {[%clk 0:02:31.4]}
10. Qf3 {[%clk 0:02:26.6]} 10... Nbd7 {[%clk 0:02:12.8]} 11. O-O-O {[%clk
0:02:17.3]} 11... Nb6 {[%clk 0:02:04.3]} 12. fxe5 {[%clk 0:02:15.9]} 12... Ng8
{[%clk 0:01:34.5]} 13. exd6 {[%clk 0:02:13.5]} 13... Bf6 {[%clk 0:01:34.6]} 14.
e5 {[%clk 0:02:02.6]} 14... Bxe5 {[%clk 0:01:30.3]} 15. Bxb6 {[%clk 0:02:01.9]}
1-0

[Event "*** Titled Tuesday Blitz"]
[Site "Chess.com"]
[Date "2020.04.21"]
[Round "1"]
[White "ferch1ni"]
[Black "vladimirdamjanovic"]
[Result "0-1"]
[WhiteElo "2298"]
[BlackElo "2626"]
[TimeControl "180+1"]
[EndTime "10:03:26 PDT"]
[Termination "vladimirdamjanovic won by resignation"]

1. e4 {[%clk 0:02:59.2]} 1... c6 {[%clk 0:02:57.6]} 2. Nf3 {[%clk 0:02:58.5]}
2... d5 {[%clk 0:02:47.5]} 3. Nc3 {[%clk 0:02:57.8]} 3... dxe4 {[%clk
0:02:45.7]} 4. Nxe4 {[%clk 0:02:57.2]} 4... Nf6 {[%clk 0:02:46.6]} 5. Ng3 {[%clk
0:02:55.5]} 5... h5 {[%clk 0:02:46.2]} 6. Bc4 {[%clk 0:02:53.4]} 6... h4 {[%clk
0:02:30.6]} 7. Ne2 {[%clk 0:02:53.2]} 7... h3 {[%clk 0:02:27.2]} 8. g3 {[%clk
0:02:50.4]} 8... b5 {[%clk 0:02:18.5]} 9. Bb3 {[%clk 0:02:48.8]} 9... c5 {[%clk
0:02:19]} 10. d3 {[%clk 0:02:48.2]} 10... Bb7 {[%clk 0:02:18.3]} 11. Nf4 {[%clk
0:02:20.6]} 11... c4 {[%clk 0:02:15.7]} 12. Be3 {[%clk 0:01:26.9]} 12... cxb3
{[%clk 0:02:12.1]} 13. axb3 {[%clk 0:01:27.8]} 13... Nd5 {[%clk 0:02:12.6]} 14.
Nxd5 {[%clk 0:01:26]} 14... Qxd5 {[%clk 0:02:13.5]} 0-1

[Event "*** Titled Tuesday Blitz"]
[Site "Chess.com"]
[Date "2020.04.21"]
[Round "1"]
[White "Jadro9"]
[Black "chenrip"]
[Result "1-0"]
[WhiteElo "2709"]
[BlackElo "2374"]
[TimeControl "180+1"]
[EndTime "10:03:38 PDT"]
[Termination "Jadro9 won by resignation"]

1. e4 {[%clk 0:03:00.9]} 1... e6 {[%clk 0:03:00]} 2. d4 {[%clk 0:03:00.5]} 2...
d5 {[%clk 0:03:00.9]} 3. Nc3 {[%clk 0:03:00.3]} 3... Bb4 {[%clk 0:03:00.7]} 4.
Bd3 {[%clk 0:02:59.2]} 4... c5 {[%clk 0:02:57.6]} 5. exd5 {[%clk 0:02:57.7]}
5... exd5 {[%clk 0:02:57.2]} 6. dxc5 {[%clk 0:02:55]} 6... Nf6 {[%clk
0:02:51.4]} 7. Ne2 {[%clk 0:02:51.6]} 7... O-O {[%clk 0:02:49.9]} 8. Bg5 {[%clk
0:02:39.4]} 8... Bxc5 {[%clk 0:02:40.4]} 9. O-O {[%clk 0:02:38.7]} 9... Be6
{[%clk 0:02:37.9]} 10. Nf4 {[%clk 0:02:37.1]} 10... Be7 {[%clk 0:02:33.7]} 11.
Bxf6 {[%clk 0:02:31.6]} 11... Bxf6 {[%clk 0:02:32.4]} 12. Ncxd5 {[%clk
0:02:32.2]} 12... Bxb2 {[%clk 0:02:28.2]} 13. Rb1 {[%clk 0:02:32.3]} 13... Be5
{[%clk 0:02:25.9]} 14. Rxb7 {[%clk 0:02:26.8]} 14... Nc6 {[%clk 0:02:23.3]} 15.
Nxe6 {[%clk 0:02:24.9]} 15... fxe6 {[%clk 0:02:22.2]} 16. Ne3 {[%clk 0:02:23.8]}
16... Qh4 {[%clk 0:02:14.5]} 17. g3 {[%clk 0:02:21.7]} 17... Qh6 {[%clk
0:02:10.7]} 18. Be4 {[%clk 0:02:13]} 18... Rad8 {[%clk 0:02:07.3]} 19. Qg4
{[%clk 0:02:01.4]} 19... Nd4 {[%clk 0:02:00.3]} 20. Rxa7 {[%clk 0:01:36.6]}
20... Ra8 {[%clk 0:01:44.7]} 21. Rxa8 {[%clk 0:01:34.6]} 1-0

[Event "*** Titled Tuesday Blitz"]
[Site "Chess.com"]
[Date "2020.04.21"]
[Round "1"]
[White "Anaj14"]
[Black "murtas73"]
[Result "0-1"]
[WhiteElo "2142"]
[BlackElo "2564"]
[TimeControl "180+1"]
[EndTime "10:03:47 PDT"]
[Termination "murtas73 won by resignation"]

1. e4 {[%clk 0:02:59.2]} 1... e6 {[%clk 0:02:59]} 2. d3 {[%clk 0:02:59.1]} 2...
d5 {[%clk 0:02:59.6]} 3. Nd2 {[%clk 0:02:59.5]} 3... c5 {[%clk 0:02:59.3]} 4.
Ngf3 {[%clk 0:02:59.2]} 4... Nc6 {[%clk 0:02:59.6]} 5. g3 {[%clk 0:02:59.3]}
5... Nf6 {[%clk 0:02:57.2]} 6. Bg2 {[%clk 0:02:59.5]} 6... g6 {[%clk 0:02:57.4]}
7. c3 {[%clk 0:02:58.6]} 7... Bg7 {[%clk 0:02:57.5]} 8. O-O {[%clk 0:02:57.8]}
8... O-O {[%clk 0:02:57.2]} 9. Re1 {[%clk 0:02:57.4]} 9... a5 {[%clk 0:02:55.6]}
10. h4 {[%clk 0:02:49.1]} 10... b6 {[%clk 0:02:52]} 11. e5 {[%clk 0:02:33.7]}
11... Ng4 {[%clk 0:02:50.1]} 12. d4 {[%clk 0:02:32.1]} 12... cxd4 {[%clk
0:02:48.1]} 13. cxd4 {[%clk 0:02:30.8]} 13... f6 {[%clk 0:02:32.4]} 14. exf6
{[%clk 0:02:21.8]} 14... Qxf6 {[%clk 0:02:31.2]} 15. Nf1 {[%clk 0:02:03.3]}
15... Nxd4 {[%clk 0:02:25]} 16. Nxd4 {[%clk 0:01:44.3]} 16... Qxf2+ {[%clk
0:02:20.1]} 17. Kh1 {[%clk 0:01:44.7]} 17... Bxd4 {[%clk 0:02:14.5]} 18. Ne3
{[%clk 0:01:36.5]} 18... Bxe3 {[%clk 0:02:10.1]} 19. Bxe3 {[%clk 0:01:32.4]}
19... Nxe3 {[%clk 0:02:08.3]} 20. Qe2 {[%clk 0:01:27.4]} 20... Qxg2+ {[%clk
0:02:07.7]} 21. Qxg2 {[%clk 0:01:27.1]} 21... Nxg2 {[%clk 0:02:08.6]} 22. Kxg2
{[%clk 0:01:27.7]} 22... Ra7 {[%clk 0:02:05.9]} 23. Rac1 {[%clk 0:01:26.9]}
23... Raf7 {[%clk 0:02:05.2]} 24. Re2 {[%clk 0:01:24.5]} 24... d4 {[%clk
0:02:04.1]} 25. Rc6 {[%clk 0:01:24.1]} 25... Bb7 {[%clk 0:02:02.1]} 0-1